[Event "Late-Titled-Tuesday-Blitz-May-14-2024"]
[Site "Chess.com"]
[Date "2024.05.14"]
[Round "6"]
[White "Brown_Mamba24"]
[Black "NajdorfPlayerc5"]
[Result "0-1"]
[WhiteElo "2597"]
[BlackElo "2404"]
[TimeControl "180+1"]
[EndTime "15:06:29 PDT"]
[Termination "NajdorfPlayerc5 won by resignation"]

1. f3 {[%clk 0:03:00.9]} 1... d5 {[%clk 0:02:57.6]} 2. Nc3 {[%clk 0:02:56.4]}
2... d4 {[%clk 0:02:53.3]} 3. Ne4 {[%clk 0:02:56]} 3... e5 {[%clk 0:02:53.6]} 4.
Nf2 {[%clk 0:02:53.9]} 4... Nf6 {[%clk 0:02:42.6]} 5. e4 {[%clk 0:02:52.8]} 5...
dxe3 {[%clk 0:02:37.6]} 6. dxe3 {[%clk 0:02:53.7]} 6... Qxd1+ {[%clk 0:02:38]}
7. Nxd1 {[%clk 0:02:54.6]} 7... c6 {[%clk 0:02:26.3]} 8. e4 {[%clk 0:02:54.3]}
8... Bd6 {[%clk 0:02:24.9]} 9. Bg5 {[%clk 0:02:48.3]} 9... Ke7 {[%clk
0:02:23.6]} 10. Ne3 {[%clk 0:02:47.5]} 10... h6 {[%clk 0:02:17.7]} 11. Bh4
{[%clk 0:02:47.2]} 11... Bc7 {[%clk 0:02:16.9]} 12. Ne2 {[%clk 0:02:46.7]} 12...
Be6 {[%clk 0:02:15.8]} 13. Ng3 {[%clk 0:02:38.6]} 13... g6 {[%clk 0:02:09.3]}
14. O-O-O {[%clk 0:02:33.5]} 14... Bb6 {[%clk 0:01:59.7]} 15. Ng4 {[%clk
0:02:28.7]} 15... g5 {[%clk 0:01:56.9]} 16. Nxf6 {[%clk 0:01:47.3]} 16... Kxf6
{[%clk 0:01:56.5]} 17. Nh5+ {[%clk 0:01:47.5]} 17... Kg6 {[%clk 0:01:56.5]} 18.
Bg3 {[%clk 0:01:47.5]} 18... Kxh5 {[%clk 0:01:41.7]} 19. Bxe5 {[%clk 0:01:47.2]}
19... Re8 {[%clk 0:01:41.6]} 20. h4 {[%clk 0:01:41.9]} 20... g4 {[%clk
0:01:37.3]} 21. f4 {[%clk 0:01:33.5]} 21... Nd7 {[%clk 0:01:36.2]} 22. Bd6
{[%clk 0:01:33.6]} 22... f5 {[%clk 0:01:31.7]} 23. Bd3 {[%clk 0:01:28.7]} 23...
fxe4 {[%clk 0:01:16]} 24. Bxe4 {[%clk 0:01:28.4]} 24... Bxa2 {[%clk 0:01:15.3]}
25. Rhe1 {[%clk 0:01:12.8]} 25... Nf6 {[%clk 0:01:13.4]} 26. Bf5 {[%clk
0:00:55.3]} 26... Be3+ {[%clk 0:01:08.7]} 27. Rxe3 {[%clk 0:00:55.5]} 27... Rxe3
{[%clk 0:01:09.6]} 28. Be5 {[%clk 0:00:56]} 28... Nd5 {[%clk 0:01:00.4]} 29. b3
{[%clk 0:00:49.7]} 29... a5 {[%clk 0:00:52.1]} 30. Kb2 {[%clk 0:00:48.4]} 30...
a4 {[%clk 0:00:47.5]} 31. Kxa2 {[%clk 0:00:47.6]} 31... axb3+ {[%clk 0:00:47.9]}
32. Kb1 {[%clk 0:00:39.5]} 32... Nc3+ {[%clk 0:00:43.4]} 33. Bxc3 {[%clk
0:00:35.7]} 33... Rxc3 {[%clk 0:00:44.3]} 34. Rd6 {[%clk 0:00:30]} 34... bxc2+
{[%clk 0:00:39.5]} 35. Bxc2 {[%clk 0:00:29.7]} 35... Kxh4 {[%clk 0:00:39.7]} 36.
Rxh6+ {[%clk 0:00:23.1]} 36... Kg3 {[%clk 0:00:39.7]} 37. f5 {[%clk 0:00:23.6]}
37... Rf8 {[%clk 0:00:34.6]} 38. Rg6 {[%clk 0:00:22.2]} 38... Rxc2 {[%clk
0:00:23.8]} 39. Kxc2 {[%clk 0:00:23.1]} 39... Rxf5 {[%clk 0:00:24.1]} 40. Rg7
{[%clk 0:00:23.7]} 40... b5 {[%clk 0:00:22.3]} 41. Kc3 {[%clk 0:00:22.7]} 41...
Rc5+ {[%clk 0:00:22]} 42. Kb4 {[%clk 0:00:21]} 42... Rc4+ {[%clk 0:00:22.2]} 43.
Kb3 {[%clk 0:00:21.6]} 43... Kxg2 {[%clk 0:00:22.8]} 44. Rg6 {[%clk 0:00:21.5]}
44... g3 {[%clk 0:00:22.9]} 45. Rf6 {[%clk 0:00:21.7]} 45... Kg1 {[%clk
0:00:22.5]} 46. Rg6 {[%clk 0:00:20.3]} 46... g2 {[%clk 0:00:22.7]} 47. Kb2
{[%clk 0:00:18.4]} 47... Rf4 {[%clk 0:00:22.5]} 48. Kb3 {[%clk 0:00:17.9]} 48...
Kf1 {[%clk 0:00:22.6]} 49. Rxc6 {[%clk 0:00:17]} 49... g1=Q {[%clk 0:00:22.5]}
50. Rc1+ {[%clk 0:00:17.7]} 50... Kg2 {[%clk 0:00:23]} 51. Rc2+ {[%clk
0:00:18.1]} 51... Rf2 {[%clk 0:00:21.8]} 0-1

[Event "Late-Titled-Tuesday-Blitz-May-14-2024"]
[Site "Chess.com"]
[Date "2024.05.14"]
[Round "6"]
[White "Naruto-K"]
[Black "tarno17"]
[Result "1-0"]
[WhiteElo "2474"]
[BlackElo "2218"]
[TimeControl "180+1"]
[EndTime "15:06:29 PDT"]
[Termination "Naruto-K won by checkmate"]

1. Nf3 {[%clk 0:01:23]} 1... d5 {[%clk 0:02:43.5]} 2. g3 {[%clk 0:01:22.7]} 2...
e6 {[%clk 0:02:43.6]} 3. Bg2 {[%clk 0:01:20.1]} 3... Nf6 {[%clk 0:02:44.1]} 4.
O-O {[%clk 0:01:19.7]} 4... c5 {[%clk 0:02:42.7]} 5. c4 {[%clk 0:01:18.9]} 5...
Be7 {[%clk 0:02:41.4]} 6. cxd5 {[%clk 0:01:18.5]} 6... Nxd5 {[%clk 0:02:40.7]}
7. Nc3 {[%clk 0:01:17.7]} 7... O-O {[%clk 0:02:40.5]} 8. Nxd5 {[%clk 0:01:17.2]}
8... exd5 {[%clk 0:02:41.4]} 9. d4 {[%clk 0:01:16.6]} 9... c4 {[%clk 0:02:31.5]}
10. Bf4 {[%clk 0:01:09.7]} 10... Nc6 {[%clk 0:02:31.4]} 11. Qc2 {[%clk 0:01:04]}
11... Nb4 {[%clk 0:02:14.6]} 12. Qb1 {[%clk 0:00:59.6]} 12... Be6 {[%clk
0:02:05.7]} 13. Ne5 {[%clk 0:00:30.6]} 13... Qc8 {[%clk 0:01:54.6]} 14. e4
{[%clk 0:00:20.3]} 14... f6 {[%clk 0:01:53.3]} 15. exd5 {[%clk 0:00:19]} 15...
Nxd5 {[%clk 0:01:51.7]} 16. Nf3 {[%clk 0:00:18.3]} 16... Nxf4 {[%clk 0:01:51.4]}
17. gxf4 {[%clk 0:00:18.7]} 17... Bf5 {[%clk 0:01:39.3]} 18. Qc1 {[%clk
0:00:16.9]} 18... Bd3 {[%clk 0:01:37.9]} 19. Re1 {[%clk 0:00:16.4]} 19... Bd6
{[%clk 0:01:37.8]} 20. Qd2 {[%clk 0:00:06.3]} 20... Qg4 {[%clk 0:01:36.8]} 21.
d5 {[%clk 0:00:02.1]} 21... Bxf4 {[%clk 0:01:35.6]} 22. Qb4 {[%clk 0:00:02.5]}
22... Qh5 {[%clk 0:01:30.4]} 23. h3 {[%clk 0:00:01.9]} 23... Qxd5 {[%clk
0:01:24.3]} 24. Ne5 {[%clk 0:00:00.9]} 24... Qd8 {[%clk 0:01:07.7]} 25. Nxd3
{[%clk 0:00:01]} 25... cxd3 {[%clk 0:01:07.2]} 26. Qxf4 {[%clk 0:00:00.5]} 26...
Rb8 {[%clk 0:01:02.9]} 27. Red1 {[%clk 0:00:01.2]} 27... Qb6 {[%clk 0:01:00.2]}
28. Qf3 {[%clk 0:00:02.1]} 28... Rfd8 {[%clk 0:00:56.9]} 29. Rxd3 {[%clk
0:00:02.1]} 29... Re8 {[%clk 0:00:50.4]} 30. Rad1 {[%clk 0:00:02.3]} 30... Qxb2
{[%clk 0:00:48.5]} 31. Qd5+ {[%clk 0:00:03]} 31... Kh8 {[%clk 0:00:48.1]} 32.
Qd7 {[%clk 0:00:03.8]} 32... h6 {[%clk 0:00:44.2]} 33. Rg3 {[%clk 0:00:04]}
33... Rg8 {[%clk 0:00:39.2]} 34. a4 {[%clk 0:00:04.6]} 34... Qe5 {[%clk
0:00:33.6]} 35. Rf1 {[%clk 0:00:02.9]} 35... b6 {[%clk 0:00:30.4]} 36. Qf7
{[%clk 0:00:02.7]} 36... Rbd8 {[%clk 0:00:20.4]} 37. Re3 {[%clk 0:00:03]} 37...
Qg5 {[%clk 0:00:18.5]} 38. Rg3 {[%clk 0:00:03.5]} 38... Qe5 {[%clk 0:00:18]} 39.
Qg6 {[%clk 0:00:04.2]} 39... Rd4 {[%clk 0:00:17.4]} 40. Rf3 {[%clk 0:00:03.6]}
40... Rh4 {[%clk 0:00:16.3]} 41. Rf5 {[%clk 0:00:03.9]} 41... Qd4 {[%clk
0:00:15.8]} 42. Rh5 {[%clk 0:00:04.3]} 42... Rf4 {[%clk 0:00:14.7]} 43. Rxh6+
{[%clk 0:00:03.7]} 43... gxh6 {[%clk 0:00:15.4]} 44. Qxh6# {[%clk 0:00:04.6]}
1-0

[Event "Late-Titled-Tuesday-Blitz-May-14-2024"]
[Site "Chess.com"]
[Date "2024.05.14"]
[Round "6"]
[White "N_Mullodzhanov"]
[Black "MaxLeto"]
[Result "1-0"]
[WhiteElo "2589"]
[BlackElo "2384"]
[TimeControl "180+1"]
[EndTime "15:06:31 PDT"]
[Termination "N_Mullodzhanov won by checkmate"]

1. e4 {[%clk 0:03:00.9]} 1... c5 {[%clk 0:02:59.4]} 2. c3 {[%clk 0:02:58.8]}
2... Nf6 {[%clk 0:02:59.2]} 3. e5 {[%clk 0:02:59.1]} 3... Nd5 {[%clk 0:03:00]}
4. Nf3 {[%clk 0:02:59.5]} 4... Nc6 {[%clk 0:03:00.1]} 5. Bc4 {[%clk 0:02:59.2]}
5... e6 {[%clk 0:03:00]} 6. d4 {[%clk 0:02:59.3]} 6... d6 {[%clk 0:02:56.3]} 7.
O-O {[%clk 0:02:56.7]} 7... cxd4 {[%clk 0:02:55.5]} 8. cxd4 {[%clk 0:02:57]}
8... Be7 {[%clk 0:02:55.2]} 9. Qe2 {[%clk 0:02:56.3]} 9... O-O {[%clk
0:02:53.4]} 10. Rd1 {[%clk 0:02:56.5]} 10... Na5 {[%clk 0:02:21.8]} 11. Bb5
{[%clk 0:02:45.7]} 11... a6 {[%clk 0:02:21.4]} 12. Ba4 {[%clk 0:02:44.8]} 12...
b5 {[%clk 0:02:19.4]} 13. Bc2 {[%clk 0:02:44.7]} 13... Nb4 {[%clk 0:01:47.2]}
14. exd6 {[%clk 0:02:13.3]} 14... Qxd6 {[%clk 0:01:31.6]} 15. Be4 {[%clk
0:02:12.6]} 15... Bb7 {[%clk 0:01:29.6]} 16. Nc3 {[%clk 0:02:08.5]} 16... Bxe4
{[%clk 0:01:23.2]} 17. Qxe4 {[%clk 0:02:00.4]} 17... Rfd8 {[%clk 0:01:07]} 18.
Bg5 {[%clk 0:01:45.3]} 18... Nc4 {[%clk 0:00:57.9]} 19. Bxe7 {[%clk 0:01:36.4]}
19... Qxe7 {[%clk 0:00:58.8]} 20. d5 {[%clk 0:01:36.5]} 20... Nxb2 {[%clk
0:00:50.3]} 21. d6 {[%clk 0:01:32.7]} 21... Qf6 {[%clk 0:00:18]} 22. Qxb4 {[%clk
0:01:27.1]} 22... Nxd1 {[%clk 0:00:18.4]} 23. Rxd1 {[%clk 0:01:27]} 23... a5
{[%clk 0:00:15.3]} 24. Qb3 {[%clk 0:01:08.8]} 24... b4 {[%clk 0:00:08.9]} 25.
Ne4 {[%clk 0:01:07.3]} 25... Qf4 {[%clk 0:00:09.2]} 26. Qd3 {[%clk 0:00:57.2]}
26... a4 {[%clk 0:00:03.3]} 27. g3 {[%clk 0:00:56.6]} 27... Qf5 {[%clk
0:00:02.7]} 28. d7 {[%clk 0:00:40.3]} 28... h6 {[%clk 0:00:02.7]} 29. Kg2 {[%clk
0:00:27.4]} 29... e5 {[%clk 0:00:03.3]} 30. Qd5 {[%clk 0:00:21.3]} 30... Ra7
{[%clk 0:00:03]} 31. Nxe5 {[%clk 0:00:20.2]} 31... Qe6 {[%clk 0:00:00.5]} 32.
Qxe6 {[%clk 0:00:16]} 32... fxe6 {[%clk 0:00:01.4]} 33. Nc5 {[%clk 0:00:16.7]}
33... Rc7 {[%clk 0:00:01.2]} 34. Nxe6 {[%clk 0:00:16.7]} 34... Rdxd7 {[%clk
0:00:01.3]} 35. Nxd7 {[%clk 0:00:15.4]} 35... Rc2 {[%clk 0:00:01.5]} 36. Ne5
{[%clk 0:00:09.2]} 36... Rxa2 {[%clk 0:00:01.6]} 37. Rd8+ {[%clk 0:00:09.2]}
37... Kh7 {[%clk 0:00:02.1]} 38. Nf8+ {[%clk 0:00:09.5]} 38... Kg8 {[%clk
0:00:02.5]} 39. Nfg6+ {[%clk 0:00:10.2]} 39... Kh7 {[%clk 0:00:02.5]} 40. Rh8#
{[%clk 0:00:11.1]} 1-0

[Event "Late-Titled-Tuesday-Blitz-May-14-2024"]
[Site "Chess.com"]
[Date "2024.05.14"]
[Round "6"]
[White "FedaMaster"]
[Black "giovannibrandao7"]
[Result "1-0"]
[WhiteElo "2625"]
[BlackElo "2316"]
[TimeControl "180+1"]
[EndTime "15:06:31 PDT"]
[Termination "FedaMaster won on time"]

1. d4 {[%clk 0:03:00.9]} 1... Nf6 {[%clk 0:03:00.2]} 2. f3 {[%clk 0:02:59.5]}
2... g6 {[%clk 0:03:00.8]} 3. e4 {[%clk 0:02:55.8]} 3... d6 {[%clk 0:03:01.4]}
4. Be3 {[%clk 0:02:54.9]} 4... Bg7 {[%clk 0:03:01.6]} 5. Qd2 {[%clk 0:02:54]}
5... O-O {[%clk 0:03:00.1]} 6. Bh6 {[%clk 0:02:53.6]} 6... Nc6 {[%clk
0:02:59.5]} 7. h4 {[%clk 0:02:48.2]} 7... e5 {[%clk 0:02:56.8]} 8. d5 {[%clk
0:02:46.4]} 8... Ne7 {[%clk 0:02:56.3]} 9. h5 {[%clk 0:02:45.5]} 9... Nxh5
{[%clk 0:02:23.2]} 10. Bxg7 {[%clk 0:02:40.5]} 10... Kxg7 {[%clk 0:02:14.6]} 11.
Ne2 {[%clk 0:02:39.6]} 11... f5 {[%clk 0:01:49.7]} 12. exf5 {[%clk 0:02:36.8]}
12... Nf4 {[%clk 0:01:21]} 13. Nxf4 {[%clk 0:02:32.6]} 13... exf4 {[%clk
0:01:21.9]} 14. Qd4+ {[%clk 0:02:28.3]} 14... Kg8 {[%clk 0:01:08.5]} 15. fxg6
{[%clk 0:02:27.1]} 15... Nxg6 {[%clk 0:01:05]} 16. Bd3 {[%clk 0:02:26.3]} 16...
Bf5 {[%clk 0:00:58.7]} 17. Nc3 {[%clk 0:02:24.2]} 17... Qf6 {[%clk 0:00:52.4]}
18. Qxf6 {[%clk 0:02:23.4]} 18... Rxf6 {[%clk 0:00:53.3]} 19. O-O-O {[%clk
0:01:53.4]} 19... Bxd3 {[%clk 0:00:37.9]} 20. Rxd3 {[%clk 0:01:54.3]} 20... Ne5
{[%clk 0:00:37.9]} 21. Rd4 {[%clk 0:01:53.9]} 21... Kh8 {[%clk 0:00:31]} 22. Ne4
{[%clk 0:01:53.1]} 22... Rg6 {[%clk 0:00:30.6]} 23. Rh2 {[%clk 0:01:52.6]} 23...
Rag8 {[%clk 0:00:30.6]} 24. Rd2 {[%clk 0:01:53]} 24... Nc4 {[%clk 0:00:27]} 25.
Re2 {[%clk 0:01:52.9]} 25... Ne3 {[%clk 0:00:27.4]} 26. b3 {[%clk 0:01:47.9]}
26... Rxg2 {[%clk 0:00:22.7]} 27. Rexg2 {[%clk 0:01:43.4]} 27... Rxg2 {[%clk
0:00:23.6]} 28. Rxg2 {[%clk 0:01:43.5]} 28... Nxg2 {[%clk 0:00:24.5]} 29. Ng5
{[%clk 0:01:38.7]} 29... Ne3 {[%clk 0:00:21.4]} 30. c4 {[%clk 0:01:36.6]} 30...
c6 {[%clk 0:00:18.1]} 31. c5 {[%clk 0:01:34.7]} 31... Nxd5 {[%clk 0:00:09.9]}
32. cxd6 {[%clk 0:01:31]} 32... Nb6 {[%clk 0:00:09.6]} 33. Ne6 {[%clk
0:01:31.9]} 33... Kg8 {[%clk 0:00:08.1]} 34. Nxf4 {[%clk 0:01:30.4]} 34... Kf7
{[%clk 0:00:08.6]} 35. Kd2 {[%clk 0:01:28.6]} 35... h5 {[%clk 0:00:07.2]} 36.
Nxh5 {[%clk 0:01:28.1]} 36... Ke6 {[%clk 0:00:07.1]} 37. Kd3 {[%clk 0:01:24.3]}
37... Kxd6 {[%clk 0:00:07.5]} 38. Nf4 {[%clk 0:01:24.6]} 38... Ke5 {[%clk
0:00:07.4]} 39. Ke3 {[%clk 0:01:23.7]} 39... Nd7 {[%clk 0:00:05.2]} 40. Nd3+
{[%clk 0:01:23]} 40... Kd6 {[%clk 0:00:04.9]} 41. Kd4 {[%clk 0:01:22.7]} 41...
Nf6 {[%clk 0:00:05.3]} 42. f4 {[%clk 0:01:22.6]} 42... b6 {[%clk 0:00:05.6]} 43.
b4 {[%clk 0:01:22.4]} 43... a6 {[%clk 0:00:06]} 44. a3 {[%clk 0:01:22.2]} 44...
Nd5 {[%clk 0:00:06.1]} 45. f5 {[%clk 0:01:21.9]} 45... Nf6 {[%clk 0:00:06.4]}
46. Nf2 {[%clk 0:01:21.2]} 46... c5+ {[%clk 0:00:06.4]} 47. Kc4 {[%clk
0:01:19.8]} 47... cxb4 {[%clk 0:00:06]} 48. axb4 {[%clk 0:01:19.7]} 48... Kc6
{[%clk 0:00:06.4]} 49. Nd3 {[%clk 0:01:18.6]} 49... Kd6 {[%clk 0:00:06.3]} 50.
Kd4 {[%clk 0:01:18.7]} 50... Nd7 {[%clk 0:00:05.8]} 51. Nb2 {[%clk 0:01:14.3]}
51... b5 {[%clk 0:00:05]} 52. Nd3 {[%clk 0:01:14.4]} 52... Nb8 {[%clk
0:00:05.6]} 53. Ne5 {[%clk 0:01:13.1]} 53... Ke7 {[%clk 0:00:02.6]} 54. Kd5
{[%clk 0:01:14]} 54... Kf6 {[%clk 0:00:02.9]} 55. Nc6 {[%clk 0:00:59.3]} 55...
Nd7 {[%clk 0:00:03]} 56. Kd6 {[%clk 0:00:58.9]} 56... Nb6 {[%clk 0:00:02.8]} 57.
Nd4 {[%clk 0:00:58.6]} 57... Nc4+ {[%clk 0:00:02.8]} 58. Kc5 {[%clk 0:00:59.5]}
58... a5 {[%clk 0:00:03.3]} 59. Kxb5 {[%clk 0:00:56.2]} 1-0

[Event "Late-Titled-Tuesday-Blitz-May-14-2024"]
[Site "Chess.com"]
[Date "2024.05.14"]
[Round "6"]
[White "baki83"]
[Black "Javadovvv"]
[Result "1-0"]
[WhiteElo "2908"]
[BlackElo "2588"]
[TimeControl "180+1"]
[EndTime "15:06:34 PDT"]
[Termination "baki83 won by resignation"]

1. e4 {[%clk 0:03:00.9]} 1... e6 {[%clk 0:02:56.6]} 2. d4 {[%clk 0:02:57.2]}
2... d5 {[%clk 0:02:57.2]} 3. exd5 {[%clk 0:02:57.8]} 3... exd5 {[%clk
0:02:57.5]} 4. Bd3 {[%clk 0:02:58.5]} 4... Nc6 {[%clk 0:02:58]} 5. c3 {[%clk
0:02:58.6]} 5... Bd6 {[%clk 0:02:58.5]} 6. Ne2 {[%clk 0:02:58.3]} 6... Nf6
{[%clk 0:02:59]} 7. Bf4 {[%clk 0:02:56.6]} 7... O-O {[%clk 0:02:59.3]} 8. Bxd6
{[%clk 0:02:51.2]} 8... Qxd6 {[%clk 0:03:00.2]} 9. h3 {[%clk 0:02:51.7]} 9...
Re8 {[%clk 0:02:59.9]} 10. O-O {[%clk 0:02:51.7]} 10... Bd7 {[%clk 0:02:59.4]}
11. Nd2 {[%clk 0:02:51.6]} 11... Re7 {[%clk 0:02:59.2]} 12. Nf3 {[%clk
0:02:43.5]} 12... Rae8 {[%clk 0:02:58.8]} 13. Qc2 {[%clk 0:02:32.6]} 13... Ne4
{[%clk 0:02:55.9]} 14. Rae1 {[%clk 0:02:25.7]} 14... f5 {[%clk 0:02:55.7]} 15.
Qc1 {[%clk 0:02:16.4]} 15... Bc8 {[%clk 0:02:28.2]} 16. Bb5 {[%clk 0:02:01.8]}
16... Bd7 {[%clk 0:02:22.4]} 17. Bd3 {[%clk 0:01:53.6]} 17... Bc8 {[%clk
0:02:19.3]} 18. Bb5 {[%clk 0:01:21.9]} 18... Bd7 {[%clk 0:02:19.3]} 19. Nf4
{[%clk 0:01:18.9]} 19... a6 {[%clk 0:01:51.1]} 20. Ba4 {[%clk 0:01:18.5]} 20...
g6 {[%clk 0:01:39.1]} 21. Nxd5 {[%clk 0:01:18.5]} 21... Rf7 {[%clk 0:01:35.3]}
22. Nf4 {[%clk 0:01:10]} 22... Kg7 {[%clk 0:01:34.1]} 23. Bxc6 {[%clk
0:01:07.9]} 23... Bxc6 {[%clk 0:01:33.8]} 24. Ne5 {[%clk 0:01:08.5]} 24... Rfe7
{[%clk 0:01:30.6]} 25. f3 {[%clk 0:01:02.7]} 25... Ng3 {[%clk 0:01:24.6]} 26.
Rf2 {[%clk 0:01:02.8]} 26... Rxe5 {[%clk 0:01:17.2]} 27. dxe5 {[%clk 0:00:59.2]}
27... Rxe5 {[%clk 0:01:18.1]} 28. Rxe5 {[%clk 0:00:52.8]} 28... Qxe5 {[%clk
0:01:19]} 29. Qd2 {[%clk 0:00:37.3]} 29... Bb5 {[%clk 0:01:09.7]} 30. Qd4 {[%clk
0:00:29.6]} 30... Kf6 {[%clk 0:01:04.9]} 31. Nd5+ {[%clk 0:00:17.4]} 31... Ke6
{[%clk 0:01:05.5]} 32. Qxe5+ {[%clk 0:00:17.8]} 32... Kxe5 {[%clk 0:01:06.4]}
33. Nxc7 {[%clk 0:00:18.2]} 33... Bc6 {[%clk 0:01:02.1]} 34. Rd2 {[%clk
0:00:17.3]} 34... f4 {[%clk 0:00:59.5]} 35. Kf2 {[%clk 0:00:17.7]} 35... Nf5
{[%clk 0:00:59.4]} 36. Na8 {[%clk 0:00:16.4]} 36... Ne3 {[%clk 0:00:57.1]} 37.
Nb6 {[%clk 0:00:16.8]} 37... Ke6 {[%clk 0:00:56.4]} 38. b3 {[%clk 0:00:17.1]}
38... h5 {[%clk 0:00:54.2]} 39. c4 {[%clk 0:00:17.3]} 39... g5 {[%clk
0:00:54.6]} 40. a4 {[%clk 0:00:15.8]} 40... g4 {[%clk 0:00:54.8]} 41. hxg4
{[%clk 0:00:15.9]} 41... hxg4 {[%clk 0:00:55.7]} 42. fxg4 {[%clk 0:00:15.5]}
42... Nxg4+ {[%clk 0:00:55.7]} 43. Kg1 {[%clk 0:00:15.2]} 43... Ne3 {[%clk
0:00:55.9]} 44. Nd5 {[%clk 0:00:15.3]} 44... Nxd5 {[%clk 0:00:47.3]} 45. cxd5+
{[%clk 0:00:16.2]} 45... Bxd5 {[%clk 0:00:48.2]} 46. b4 {[%clk 0:00:16.2]} 46...
f3 {[%clk 0:00:46]} 47. g3 {[%clk 0:00:15.9]} 47... Ke5 {[%clk 0:00:44.2]} 48.
Kf2 {[%clk 0:00:16.2]} 48... Be4 {[%clk 0:00:44.2]} 49. a5 {[%clk 0:00:16]}
49... Kf5 {[%clk 0:00:43]} 50. Ke3 {[%clk 0:00:16]} 50... Ke5 {[%clk 0:00:42.4]}
51. Rd4 {[%clk 0:00:15.7]} 51... Bc6 {[%clk 0:00:42.1]} 52. Rf4 {[%clk 0:00:16]}
52... Kd5 {[%clk 0:00:42.2]} 53. Rxf3 {[%clk 0:00:15.6]} 53... Kc4 {[%clk
0:00:42.4]} 54. Rf4+ {[%clk 0:00:16.2]} 54... Kb3 {[%clk 0:00:42.5]} 55. g4
{[%clk 0:00:16.6]} 1-0

[Event "Late-Titled-Tuesday-Blitz-May-14-2024"]
[Site "Chess.com"]
[Date "2024.05.14"]
[Round "6"]
[White "jaramsdal"]
[Black "kinga2008"]
[Result "0-1"]
[WhiteElo "2360"]
[BlackElo "2536"]
[TimeControl "180+1"]
[EndTime "15:06:34 PDT"]
[Termination "kinga2008 won by checkmate"]

1. e4 {[%clk 0:03:00.9]} 1... c5 {[%clk 0:02:55.8]} 2. a3 {[%clk 0:03:00.3]}
2... d5 {[%clk 0:02:55.2]} 3. exd5 {[%clk 0:03:00]} 3... Qxd5 {[%clk 0:02:55.6]}
4. Nc3 {[%clk 0:03:00.7]} 4... Qd8 {[%clk 0:02:53.2]} 5. Nf3 {[%clk 0:03:01]}
5... Bg4 {[%clk 0:02:52.7]} 6. Be2 {[%clk 0:03:00.9]} 6... Nc6 {[%clk
0:02:52.9]} 7. O-O {[%clk 0:03:00.9]} 7... e6 {[%clk 0:02:53.5]} 8. d3 {[%clk
0:02:56.8]} 8... Nf6 {[%clk 0:02:53.6]} 9. Be3 {[%clk 0:02:50.6]} 9... Bd6
{[%clk 0:02:53.3]} 10. d4 {[%clk 0:02:49.1]} 10... Bxf3 {[%clk 0:02:51.7]} 11.
Bxf3 {[%clk 0:02:47.1]} 11... cxd4 {[%clk 0:02:51.6]} 12. Bxc6+ {[%clk
0:02:44.8]} 12... bxc6 {[%clk 0:02:51.8]} 13. Qxd4 {[%clk 0:02:45.5]} 13... O-O
{[%clk 0:02:47.3]} 14. Rad1 {[%clk 0:02:46]} 14... Be7 {[%clk 0:02:25.7]} 15.
Qc4 {[%clk 0:02:46]} 15... Qc8 {[%clk 0:02:21.4]} 16. Rd2 {[%clk 0:02:36.8]}
16... Qb7 {[%clk 0:02:21.5]} 17. Na4 {[%clk 0:02:28.9]} 17... Nd5 {[%clk
0:02:19.8]} 18. Bc5 {[%clk 0:02:26.1]} 18... Bxc5 {[%clk 0:02:09.8]} 19. Qxc5
{[%clk 0:02:27]} 19... Qb5 {[%clk 0:02:04.8]} 20. b3 {[%clk 0:02:16.9]} 20...
Nf6 {[%clk 0:01:36.9]} 21. f3 {[%clk 0:02:08.3]} 21... Qb7 {[%clk 0:01:29.1]}
22. Rfd1 {[%clk 0:02:05.1]} 22... h6 {[%clk 0:01:29.2]} 23. h4 {[%clk
0:01:50.6]} 23... Qc7 {[%clk 0:01:22.6]} 24. Qd6 {[%clk 0:01:46.9]} 24... Qb7
{[%clk 0:01:16.3]} 25. Nc5 {[%clk 0:01:43.7]} 25... Qb6 {[%clk 0:01:13.6]} 26.
Kh1 {[%clk 0:01:36.2]} 26... Rad8 {[%clk 0:01:12.2]} 27. Qxd8 {[%clk 0:01:33.9]}
27... Rxd8 {[%clk 0:01:08.6]} 28. Rxd8+ {[%clk 0:01:34.8]} 28... Kh7 {[%clk
0:01:09.2]} 29. b4 {[%clk 0:01:35.7]} 29... a5 {[%clk 0:01:05.7]} 30. c3 {[%clk
0:01:35.8]} 30... Qb5 {[%clk 0:01:01.6]} 31. Nd7 {[%clk 0:01:27.6]} 31... Nxd7
{[%clk 0:00:46.7]} 32. R8xd7 {[%clk 0:01:28.5]} 32... axb4 {[%clk 0:00:39]} 33.
cxb4 {[%clk 0:01:27.7]} 33... Qa4 {[%clk 0:00:36.9]} 34. R1d3 {[%clk 0:01:18.9]}
34... Qc2 {[%clk 0:00:36.9]} 35. Kh2 {[%clk 0:01:11.1]} 35... Qc4 {[%clk
0:00:36.5]} 36. R3d4 {[%clk 0:01:07.7]} 36... Qc3 {[%clk 0:00:32.5]} 37. a4
{[%clk 0:01:07.1]} 37... e5 {[%clk 0:00:25.1]} 38. Rg4 {[%clk 0:00:47]} 38... h5
{[%clk 0:00:06.3]} 39. Rg5 {[%clk 0:00:47.4]} 39... Qxb4 {[%clk 0:00:06.4]} 40.
Rxf7 {[%clk 0:00:44.2]} 40... Qxh4+ {[%clk 0:00:05.9]} 41. Kg1 {[%clk
0:00:41.6]} 41... Qxg5 {[%clk 0:00:06]} 42. a5 {[%clk 0:00:41.9]} 42... Qc1+
{[%clk 0:00:05.8]} 43. Kh2 {[%clk 0:00:42.2]} 43... Qa3 {[%clk 0:00:05.4]} 44.
Ra7 {[%clk 0:00:41.4]} 44... c5 {[%clk 0:00:05.3]} 45. a6 {[%clk 0:00:41.9]}
45... c4 {[%clk 0:00:06]} 46. Ra8 {[%clk 0:00:42.6]} 46... c3 {[%clk 0:00:05.4]}
47. a7 {[%clk 0:00:43.5]} 47... c2 {[%clk 0:00:05.9]} 48. Rb8 {[%clk 0:00:44.4]}
48... c1=Q {[%clk 0:00:05]} 49. a8=Q {[%clk 0:00:45.3]} 49... Qf4+ {[%clk
0:00:05.1]} 50. Kh3 {[%clk 0:00:45.2]} 50... Qxa8 {[%clk 0:00:03.3]} 51. Rxa8
{[%clk 0:00:43.8]} 51... e4 {[%clk 0:00:03.9]} 52. Ra4 {[%clk 0:00:42.7]} 52...
Qf5+ {[%clk 0:00:04.2]} 53. g4 {[%clk 0:00:42.3]} 53... Qxf3+ {[%clk 0:00:04.1]}
54. Kh4 {[%clk 0:00:42.8]} 54... Qxg4# {[%clk 0:00:04.1]} 0-1